fUSD/lending_fUSD_20240218
["ID","MTS","AMOUNT","RATE_DAILY","PERIOD"]
[314376794,1708246243041,-500.0,0.00036169,2]
[314376795,1708246243051,-500.0,0.00036169,2]
[314376796,1708246243061,-500.0,0.00036169,2]
[314376797,1708246243070,-512.37806709,0.00036169,2]
[314376798,1708246243079,-500.0,0.00036169,2]
[314376799,1708246243089,-91238.8998,0.0003617,2]
[314376800,1708246243098,-153550.8158,0.0003617,2]
[314376801,1708246243107,-230.4933,0.0003617,2]
[314376802,1708246243116,-12357.846,0.0003617,2]
[314376803,1708246243125,-5000.0,0.0003617,3]
[314376804,1708246243134,-220.1349,0.00036172,2]
[314376805,1708246243143,-150.0,0.00036208,2]
[314376806,1708246243152,-150.0,0.00036242,2]
[314376807,1708246243161,-150.0,0.00036249,2]
[314376808,1708246243170,-621.92278658,0.00036252,2]
[314376809,1708246243179,-1477249.89907277,0.00036268,2]
[314376810,1708246243188,-500.0,0.00036268,2]
[314376811,1708246243197,-500.0,0.00036268,2]
[314376813,1708246243206,-500.0,0.00036268,2]
[314376815,1708246243215,-500.0,0.00036268,2]
[314376817,1708246243224,-740.36,0.00036268,2]
[314376819,1708246243233,-500.0,0.00036268,2]
[314376820,1708246243242,-500.0,0.00036268,2]
[314376821,1708246243250,-500.0,0.00036268,2]
[314376822,1708246243259,-500.0,0.00036268,2]
[314376823,1708246243269,-500.0,0.00036268,2]
[314376824,1708246243278,-500.0,0.00036268,2]
[314376825,1708246243287,-500.0,0.00036268,2]
[314376826,1708246243296,-1700.22,0.00036268,2]
[314376827,1708246243305,-500.0,0.00036268,2]
[314376828,1708246243314,-568.88,0.00036268,2]
[314376829,1708246243323,-500.0,0.00036268,2]
[314376830,1708246243333,-500.0,0.00036268,2]
[314376831,1708246243342,-1444.82,0.00036268,2]
[314376832,1708246243352,-293.17070452,0.00036268,2]
[314376833,1708246243361,-500.0,0.00036268,2]
[314376834,1708246243371,-792.06,0.00036268,2]
[314376835,1708246243380,-500.0,0.00036268,2]
[314376836,1708246243389,-639.68955488,0.00036268,2]
[314376837,1708246243398,-500.0,0.00036268,2]
[314376838,1708246243408,-500.0,0.00036268,2]
[314376839,1708246243417,-500.0,0.00036268,2]
[314376840,1708246243426,-500.0,0.00036268,2]
[314376841,1708246243435,-304.96113588,0.00036268,2]
[314376842,1708246243444,-500.0,0.00036268,2]
[314376843,1708246243454,-500.0,0.00036268,2]
[314376844,1708246243463,-500.0,0.00036268,2]
[314376845,1708246243473,-500.0,0.00036268,2]
[314376846,1708246243481,-500.0,0.00036268,2]
[314376847,1708246243490,-500.0,0.00036268,2]
[314376848,1708246243499,-500.0,0.00036268,2]
[314376849,1708246243508,-500.0,0.00036268,2]
[314376850,1708246243517,-519.84,0.00036268,2]
[314376851,1708246243526,-500.0,0.00036268,2]
[314376852,1708246243535,-500.0,0.00036268,2]
[314376853,1708246243545,-500.0,0.00036268,2]
[314376854,1708246243555,-500.0,0.00036268,2]
[314376855,1708246243564,-1551.95,0.00036268,2]
[314376856,1708246243574,-500.0,0.00036268,2]
[314376857,1708246243584,-1460.37,0.00036268,2]
[314376858,1708246243594,-500.0,0.00036268,2]
[314376859,1708246243603,-500.0,0.00036268,2]
[314376860,1708246243613,-500.0,0.00036268,2]
[314376861,1708246243660,-500.0,0.00036268,2]
[314376862,1708246243669,-635.917789,0.00036269,2]
[314376863,1708246243678,-500.0,0.00036269,2]
[314376864,1708246243689,-500.0,0.00036269,2]
[314376865,1708246243698,-500.0,0.00036269,2]
[314376866,1708246243707,-500.0,0.00036269,7]
[314376867,1708246243716,-500.0,0.00036269,2]
[314376868,1708246243725,-500.0,0.00036269,2]
[314376869,1708246243734,-318.01870543,0.00036269,2]
[314376870,1708246243744,-500.0,0.00036269,2]
[314376871,1708246243754,-500.0,0.00036269,2]
[314376872,1708246243763,-500.0,0.00036269,2]
[314376873,1708246243773,-500.0,0.00036269,2]
[314376874,1708246243783,-302.40072753,0.00036269,2]
[314376875,1708246243792,-500.0,0.00036269,2]
[314376876,1708246243802,-500.0,0.00036269,2]
[314376877,1708246243813,-500.0,0.00036269,2]
[314376878,1708246243824,-500.0,0.00036269,2]
[314376879,1708246243835,-500.0,0.00036269,2]
[314376880,1708246243844,-500.0,0.00036269,2]
[314376881,1708246243855,-500.0,0.00036269,2]
[314376882,1708246243864,-500.0,0.00036269,2]
[314376883,1708246243873,-500.0,0.00036269,2]
[314376884,1708246243882,-639.63,0.00036269,2]
[314376885,1708246243891,-500.0,0.00036269,2]
[314376886,1708246243901,-500.0,0.00036269,2]
[314376887,1708246243910,-500.0,0.00036269,2]
[314376888,1708246243919,-500.0,0.00036269,2]
[314376889,1708246243928,-500.0,0.00036269,2]
[314376890,1708246243937,-500.0,0.00036269,2]
[314376891,1708246243945,-599.10479724,0.00036269,2]
[314376892,1708246243954,-555.31549309,0.00036269,2]
[314376893,1708246243963,-500.0,0.00036269,2]
[314376894,1708246243972,-500.0,0.00036269,2]
[314376895,1708246243982,-1434.01,0.00036269,2]
[314376896,1708246243991,-500.0,0.00036269,2]
[314376897,1708246244000,-500.0,0.00036269,2]
[314376898,1708246244009,-500.0,0.00036269,2]
[314376899,1708246244018,-500.0,0.00036269,2]
[314376900,1708246244027,-500.0,0.00036269,2]
[314376901,1708246244039,-500.0,0.00036269,2]
[314376902,1708246244047,-500.0,0.00036269,2]
[314376903,1708246244057,-567.12,0.00036269,2]
[314376904,1708246244067,-500.0,0.00036269,2]
[314376905,1708246244076,-500.0,0.00036269,2]
[314376906,1708246244086,-500.0,0.00036269,2]
[314376907,1708246244095,-500.0,0.00036269,2]
[314376908,1708246244104,-500.0,0.00036269,2]
[314376909,1708246244113,-1944.31,0.00036269,2]
[314376910,1708246244123,-500.0,0.00036269,2]
[314376911,1708246244132,-500.0,0.00036269,2]
[314376912,1708246244141,-500.0,0.00036269,2]
[314376913,1708246244150,-500.0,0.00036269,2]
[314376914,1708246244159,-500.0,0.00036269,2]
[314376915,1708246244169,-500.0,0.00036269,2]
[314376916,1708246244178,-500.0,0.00036269,2]
[314376917,1708246244187,-500.0,0.00036269,2]
[314376918,1708246244196,-500.0,0.00036269,2]
[314376919,1708246244205,-500.0,0.00036269,2]
[314376920,1708246244214,-586.25964412,0.00036269,2]
[314376921,1708246244223,-500.0,0.00036269,2]
[314376922,1708246244232,-500.0,0.00036269,2]
[314376923,1708246244242,-500.0,0.00036269,2]
[314376924,1708246244251,-1017.64625542,0.00036269,7]
[314376925,1708246244260,-500.0,0.00036269,2]
[314376926,1708246244271,-500.0,0.00036269,2]
[314376927,1708246244280,-1236.67,0.00036269,2]
[314376928,1708246244289,-500.0,0.00036269,2]
[314376929,1708246244299,-3305.18,0.00036269,2]
[314376930,1708246244308,-950.15,0.00036269,2]
[314376931,1708246244318,-500.0,0.00036269,2]
[314376932,1708246244327,-500.0,0.00036269,2]
[314376933,1708246244338,-2737.53,0.00036269,2]
[314376934,1708246244347,-500.0,0.00036269,2]
[314376935,1708246244357,-500.0,0.00036269,2]
[314376936,1708246244367,-500.0,0.00036269,2]
[314376937,1708246244376,-11041.06,0.00036269,2]
[314376938,1708246244386,-2544.64,0.00036269,2]
[314376939,1708246244397,-500.0,0.00036269,2]
[314376940,1708246244407,-2544.29,0.00036269,2]
[314376941,1708246244418,-500.0,0.00036269,2]
[314376942,1708246244428,-500.0,0.00036269,2]
[314376943,1708246244437,-500.0,0.00036269,2]
[314376944,1708246244447,-500.0,0.00036269,2]
[314376945,1708246244458,-500.0,0.00036269,2]
[314376946,1708246244467,-389.73127851,0.00036269,2]
[314376947,1708246244477,-615.34,0.00036269,2]
[314376948,1708246244486,-500.0,0.00036269,2]
[314376949,1708246244495,-500.0,0.00036269,15]
[314376950,1708246244505,-500.0,0.00036269,15]
[314376951,1708246244514,-351.19085637,0.00036269,15]
[314376952,1708246244524,-500.0,0.00036269,15]
[314376953,1708246244535,-500.0,0.00036269,15]
[314376954,1708246244546,-500.0,0.00036269,2]
[314376955,1708246244555,-316.70834849,0.0003627,3]
[314376956,1708246244565,-511.6342215,0.0003627,2]
[314376957,1708246244578,-500.0,0.0003627,2]
[314376958,1708246244588,-508.29208155,0.0003627,2]
[314376959,1708246244597,-520.19954205,0.0003627,2]
[314376960,1708246244606,-500.0,0.0003627,2]
[314376961,1708246244616,-513.80690458,0.0003627,2]
[314376962,1708246244625,-516.85323562,0.0003627,2]
[314376963,1708246244635,-500.0,0.0003627,2]
[314376964,1708246244645,-500.0,0.0003627,2]
[314376965,1708246244654,-368.27158296,0.0003627,2]
[314376966,1708246244663,-500.0,0.0003627,2]
[314376967,1708246244673,-519.13316132,0.0003627,2]
[314376968,1708246244682,-500.0,0.0003627,2]
[314376969,1708246244691,-500.0,0.0003627,2]
[314376970,1708246244701,-500.0,0.0003627,2]
[314376971,1708246244710,-500.0,0.0003627,2]
[314376972,1708246244719,-500.0,0.0003627,2]
[314376973,1708246244728,-500.0,0.0003627,2]
[314376974,1708246244737,-500.0,0.0003627,2]
[314376975,1708246244747,-500.0,0.0003627,2]
[314376976,1708246244756,-500.0,0.0003627,2]
[314376977,1708246244766,-527.22750374,0.0003627,2]
[314376978,1708246244775,-500.0,0.0003627,2]
[314376979,1708246244785,-500.0,0.0003627,2]
[314376980,1708246244794,-500.0,0.0003627,2]
[314376981,1708246244804,-277.4329025,0.0003627,2]
[314376982,1708246244814,-542.68500136,0.0003627,2]
[314376983,1708246244824,-500.0,0.0003627,2]
[314376984,1708246244833,-214.38409169,0.0003627,2]
[314376985,1708246244842,-548.37332914,0.0003627,2]
[314376986,1708246244853,-500.0,0.0003627,2]
[314376987,1708246244862,-500.0,0.0003627,2]
[314376988,1708246244871,-500.0,0.0003627,2]
[314376989,1708246244880,-500.0,0.0003627,2]
[314376990,1708246244889,-500.0,0.0003627,2]
[314376991,1708246244899,-500.0,0.0003627,2]
[314376992,1708246244908,-500.0,0.0003627,2]
[314376993,1708246244917,-500.0,0.0003627,2]
[314376994,1708246244926,-500.0,0.0003627,2]
[314376995,1708246244935,-500.0,0.0003627,2]
[314376996,1708246244945,-500.0,0.0003627,2]
[314376997,1708246244954,-500.0,0.0003627,2]
[314376998,1708246244963,-500.0,0.0003627,2]
[314376999,1708246244972,-500.0,0.0003627,2]
[314377000,1708246244981,-500.0,0.0003627,2]
[314377001,1708246244991,-500.0,0.0003627,2]
[314377002,1708246245001,-505.40219873,0.0003627,2]
[314377003,1708246245010,-500.0,0.0003627,2]
[314377004,1708246245019,-177.50582342,0.0003627,2]
[314377005,1708246245028,-500.0,0.0003627,2]
[314377006,1708246245037,-500.0,0.0003627,2]
[314377007,1708246245046,-547.27823,0.0003627,2]
[314377008,1708246245055,-517.73446418,0.0003627,2]
[314377009,1708246245064,-500.0,0.0003627,2]
[314377010,1708246245074,-528.83974002,0.0003627,2]
[314377011,1708246245083,-1000.0,0.0003627,2]
[314377012,1708246245093,-498.78482136,0.0003627,2]
[314377013,1708246245102,-520.70902994,0.0003627,2]
[314377014,1708246245111,-500.0,0.0003627,2]
[314377015,1708246245123,-543.40133412,0.0003627,2]
[314377016,1708246245132,-559.32696817,0.0003627,2]
[314377017,1708246245141,-500.0,0.0003627,2]
[314377018,1708246245151,-556.31117553,0.0003627,2]
[314377019,1708246245160,-603.45143089,0.0003627,2]
[314377020,1708246245170,-552.24157297,0.0003627,2]
[314377021,1708246245179,-519.29839921,0.0003627,2]
[314377022,1708246245188,-533.46587091,0.0003627,2]
[314377023,1708246245197,-500.0,0.0003627,2]
[314377024,1708246245206,-500.0,0.0003627,2]
[314377025,1708246245215,-500.0,0.0003627,2]
[314377026,1708246245225,-500.0,0.0003627,2]
[314377027,1708246245234,-500.0,0.0003627,2]
[314377028,1708246245243,-500.0,0.0003627,2]
[314377029,1708246245252,-512.95708758,0.0003627,2]
[314377030,1708246245261,-500.0,0.0003627,2]
[314377031,1708246245269,-500.0,0.0003627,2]
[314377032,1708246245278,-500.0,0.0003627,2]
[314377033,1708246245287,-500.0,0.0003627,2]
[314377034,1708246245296,-508.96294696,0.0003627,2]
[314377035,1708246245305,-500.0,0.0003627,2]
[314377036,1708246245314,-500.0,0.0003627,2]
[314377037,1708246245324,-573.43937025,0.0003627,2]
[314377038,1708246245333,-500.0,0.0003627,2]
[314377039,1708246245342,-518.3023401,0.0003627,2]
[314377040,1708246245351,-500.0,0.0003627,2]
[314377041,1708246245361,-527.65540375,0.0003627,2]
[314377042,1708246245370,-515.81756659,0.0003627,2]
[314377043,1708246245379,-529.21004819,0.0003627,2]
[314377044,1708246245388,-500.0,0.0003627,2]
[314377045,1708246245397,-500.0,0.0003627,2]
[314377046,1708246245406,-500.0,0.0003627,2]
[314377047,1708246245416,-522.03440367,0.0003627,2]
[314377048,1708246245428,-500.0,0.0003627,2]
[314377049,1708246245438,-461.55717207,0.0003627,2]
[314377050,1708246245448,-500.0,0.0003627,2]
[314377051,1708246245458,-500.0,0.0003627,2]
[314377052,1708246245469,-500.0,0.0003627,2]
[314377053,1708246245477,-500.0,0.0003627,2]
[314377054,1708246245487,-500.0,0.0003627,2]
[314377055,1708246245496,-530.32660817,0.0003627,2]
[314377056,1708246245506,-500.0,0.0003627,2]
[314377058,1708246245516,-500.0,0.0003627,2]
[314377059,1708246245526,-500.0,0.0003627,2]
[314377060,1708246245535,-546.89158812,0.0003627,2]
[314377061,1708246245545,-500.0,0.0003627,2]
[314377062,1708246245555,-500.0,0.0003627,2]
[314377063,1708246245564,-500.0,0.0003627,2]
[314377064,1708246245574,-500.01558728,0.0003627,2]
[314377065,1708246245583,-500.0,0.0003627,2]
[314377066,1708246245592,-553.81347421,0.0003627,2]
[314377067,1708246245602,-500.0,0.0003627,2]
[314377068,1708246245611,-500.0,0.0003627,2]
[314377069,1708246245621,-516.43383353,0.0003627,2]
[314377070,1708246245631,-1000.0,0.0003627,7]
[314377071,1708246245640,-500.0,0.0003627,2]
[314377072,1708246245650,-500.0,0.0003627,2]
[314377073,1708246245660,-500.0,0.0003627,2]
[314377074,1708246245669,-500.0,0.0003627,2]
[314377075,1708246245679,-342.39021279,0.0003627,2]
[314377076,1708246245688,-500.0,0.0003627,2]
[314377077,1708246245698,-541.59079243,0.0003627,2]
[314377078,1708246245708,-500.0,0.0003627,2]
[314377079,1708246245718,-511.19642516,0.0003627,2]
[314377080,1708246245727,-500.0,0.0003627,2]
[314377081,1708246245737,-500.0,0.0003627,2]
[314377082,1708246245746,-500.0,0.0003627,2]
[314377083,1708246245756,-514.19511239,0.0003627,2]
[314377084,1708246245766,-509.94170369,0.0003627,2]
[314377085,1708246245777,-511.75732447,0.0003627,2]
[314377086,1708246245786,-500.0,0.0003627,2]
[314377087,1708246245796,-500.0,0.0003627,2]
[314377088,1708246245806,-500.0,0.0003627,2]
[314377089,1708246245819,-500.0,0.0003627,2]
[314377090,1708246245829,-500.0,0.0003627,2]
[314377091,1708246245839,-500.0,0.0003627,2]
[314377092,1708246245850,-539.79560112,0.0003627,2]
[314377093,1708246245863,-500.0,0.0003627,2]
[314377094,1708246245872,-500.0,0.0003627,2]
[314377095,1708246245881,-500.0,0.0003627,2]
[314377096,1708246245892,-600.14554878,0.0003627,2]
[314377097,1708246245901,-500.0,0.0003627,2]
[314377098,1708246245911,-500.0,0.0003627,2]
[314377099,1708246245920,-519.3276778,0.0003627,2]
[314377100,1708246245930,-500.0,0.0003627,2]
[314377101,1708246245939,-548.97128253,0.0003627,2]
[314377102,1708246245948,-526.75165634,0.0003627,2]
[314377103,1708246245958,-500.0,0.0003627,2]
[314377104,1708246245968,-261.78669053,0.0003627,2]
[314377105,1708246245977,-974.56157681,0.0003627,7]
[314377106,1708246245987,-524.96748386,0.0003627,2]
[314377107,1708246245997,-500.0,0.0003627,2]
[314377108,1708246246006,-500.0,0.0003627,2]
[314377109,1708246246016,-500.0,0.0003627,2]
[314377110,1708246246025,-500.0,0.0003627,2]
[314377111,1708246246035,-500.0,0.0003627,2]
[314377112,1708246246045,-500.0,0.0003627,2]
[314377113,1708246246054,-517.71438254,0.0003627,2]
[314377114,1708246246064,-500.0,0.0003627,2]
[314377115,1708246246074,-500.0,0.0003627,2]
[314377116,1708246246084,-536.39769004,0.0003627,2]
[314377117,1708246246093,-500.0,0.0003627,2]
[314377118,1708246246103,-529.80498685,0.0003627,2]
[314377119,1708246246113,-500.0,0.0003627,2]
[314377120,1708246246123,-546.00590101,0.0003627,2]
[314377121,1708246246132,-500.0,0.0003627,2]
[314377122,1708246246143,-500.0,0.0003627,2]
[314377123,1708246246153,-500.0,0.0003627,2]
[314377124,1708246246164,-500.0,0.0003627,2]
[314377125,1708246246173,-530.92428656,0.0003627,2]
[314377126,1708246246183,-500.0,0.0003627,2]
[314377127,1708246246194,-518.03837143,0.0003627,2]
[314377128,1708246246205,-500.0,0.0003627,2]
[314377129,1708246246216,-500.0,0.0003627,2]
[314377130,1708246246225,-519.73580722,0.0003627,2]
[314377131,1708246246236,-500.0,0.0003627,2]
[314377132,1708246246246,-500.0,0.0003627,2]
[314377133,1708246246255,-500.0,0.0003627,2]
[314377134,1708246246269,-500.0,0.0003627,2]
[314377135,1708246246278,-500.0,0.0003627,2]
[314377136,1708246246288,-518.72696223,0.0003627,2]
[314377137,1708246246298,-498.37894097,0.0003627,2]
[314377138,1708246246307,-585.82774473,0.0003627,2]
[314377139,1708246246316,-500.0,0.0003627,2]
[314377140,1708246246326,-500.0,0.0003627,2]
[314377141,1708246246337,-279.25381971,0.0003627,2]
[314377142,1708246246347,-500.0,0.0003627,2]
[314377143,1708246246356,-521.38495542,0.0003627,2]
[314377144,1708246246366,-250.28836245,0.0003627,2]
[314377145,1708246246375,-500.0,0.0003627,2]
[314377146,1708246246384,-520.50308176,0.0003627,2]
[314377147,1708246246394,-159.53357315,0.0003627,2]
[314377148,1708246246404,-500.0,0.0003627,2]
[314377149,1708246246414,-500.0,0.0003627,2]
[314377150,1708246246423,-510.9702654,0.0003627,2]
[314377151,1708246246432,-500.0,0.0003627,2]
[314377152,1708246246442,-510.0207319,0.0003627,2]
[314377153,1708246246451,-510.09337059,0.0003627,2]
[314377154,1708246246462,-632.17,0.0003627,2]
[314377155,1708246246471,-500.0,0.0003627,2]
[314377156,1708246246481,-526.35550485,0.0003627,2]
[314377157,1708246246490,-508.03943507,0.0003627,2]
[314377158,1708246246500,-503.93549195,0.0003627,2]
[314377159,1708246246510,-500.0,0.0003627,2]
[314377160,1708246246519,-500.0,0.0003627,2]
[314377161,1708246246529,-800.49,0.0003627,2]
[314377162,1708246246538,-150.0,0.0003627,2]
[314377163,1708246246547,-500.0,0.0003627,2]
[314377164,1708246246556,-500.0,0.0003627,2]
[314377165,1708246246566,-500.0,0.0003627,2]
[314377166,1708246246575,-500.0,0.0003627,2]
[314377167,1708246246586,-521.97860258,0.0003627,2]
[314377168,1708246246595,-500.0,0.0003627,2]
[314377169,1708246246605,-500.0,0.0003627,2]
[314377170,1708246246615,-500.0,0.0003627,2]
[314377171,1708246246625,-500.0,0.0003627,2]
[314377172,1708246246635,-514.28226328,0.0003627,2]
[314377173,1708246246645,-500.0,0.0003627,2]
[314377174,1708246246654,-547.39718048,0.0003627,2]
[314377175,1708246246664,-535.21368329,0.0003627,2]
[314377176,1708246246673,-500.0,0.0003627,2]
[314377177,1708246246683,-500.0,0.0003627,2]
[314377178,1708246246693,-500.0,0.0003627,2]
[314377179,1708246246702,-500.0,0.0003627,2]
[314377180,1708246246712,-518.01832309,0.0003627,2]
[314377181,1708246246722,-500.0,0.0003627,2]
[314377182,1708246246731,-500.0,0.0003627,2]
[314377183,1708246246741,-505.3123753,0.0003627,2]
[314377184,1708246246750,-285.385836,0.0003627,2]
[314377185,1708246246760,-512.31705981,0.0003627,2]
[314377186,1708246246768,-500.0,0.0003627,2]
[314377187,1708246246778,-500.0,0.0003627,2]
[314377188,1708246246787,-563.78470207,0.0003627,2]
[314377189,1708246246797,-500.0,0.0003627,2]
[314377190,1708246246810,-500.0,0.0003627,2]
[314377191,1708246246819,-500.0,0.0003627,2]
[314377192,1708246246829,-229.23987208,0.0003627,2]
[314377193,1708246246838,-500.0,0.0003627,2]
[314377194,1708246246849,-509.42542571,0.0003627,2]
[314377195,1708246246858,-500.0,0.0003627,2]
[314377196,1708246246868,-500.0,0.0003627,2]
[314377197,1708246246877,-500.0,0.0003627,2]
[314377198,1708246246887,-500.0,0.0003627,2]
[314377199,1708246246897,-500.0,0.0003627,2]
[314377200,1708246246907,-500.0,0.0003627,2]
[314377201,1708246246916,-500.0,0.0003627,2]
[314377202,1708246246925,-500.0,0.0003627,2]
[314377203,1708246246935,-500.0,0.0003627,2]
[314377204,1708246246945,-500.0,0.0003627,2]
[314377205,1708246246954,-500.0,0.0003627,2]
[314377206,1708246246963,-500.0,0.0003627,2]
[314377207,1708246246973,-500.0,0.0003627,2]
[314377208,1708246246982,-500.0,0.0003627,2]
[314377209,1708246246992,-510.55245503,0.0003627,2]
[314377210,1708246247001,-500.0,0.0003627,2]
[314377211,1708246247010,-500.0,0.0003627,2]
[314377212,1708246247020,-500.0,0.0003627,2]
[314377213,1708246247029,-500.0,0.0003627,2]
[314377214,1708246247039,-500.0,0.0003627,2]
[314377215,1708246247048,-500.0,0.0003627,2]
[314377216,1708246247057,-511.99643789,0.0003627,2]
[314377217,1708246247066,-491.06549731,0.0003627,2]
[314377218,1708246247076,-523.2792768,0.0003627,2]
[314377219,1708246247086,-645.29319816,0.0003627,2]
[314377220,1708246247095,-500.0,0.0003627,2]
[314377221,1708246247104,-500.0,0.0003627,2]
[314377222,1708246247114,-500.0,0.0003627,2]
[314377223,1708246247123,-500.0,0.0003627,2]
[314377224,1708246247133,-500.0,0.0003627,2]
[314377225,1708246247142,-500.0,0.0003627,2]
[314377226,1708246247152,-504.93990218,0.0003627,2]
[314377227,1708246247162,-194.30280272,0.0003627,2]
[314377228,1708246247171,-500.0,0.0003627,2]
[314377229,1708246247181,-1089.85150569,0.0003627,30]
[314377230,1708246247190,-500.0,0.0003627,2]
[314377231,1708246247199,-493.68999432,0.0003627,2]
[314377232,1708246247209,-500.0,0.0003627,2]
[314377233,1708246247218,-500.0,0.0003627,2]
[314377234,1708246247228,-500.0,0.0003627,2]
[314377235,1708246247237,-529.51137121,0.0003627,2]
[314377236,1708246247247,-500.0,0.0003627,2]
[314377237,1708246247256,-348.14020875,0.0003627,2]
[314377238,1708246247267,-500.0,0.0003627,2]
[314377239,1708246247277,-617.34185108,0.0003627,2]
[314377240,1708246247286,-500.0,0.0003627,2]
[314377241,1708246247296,-500.0,0.0003627,2]
[314377242,1708246247305,-548.37914726,0.0003627,2]
[314377243,1708246247314,-500.0,0.0003627,2]
[314377244,1708246247324,-500.0,0.0003627,4]
[314377245,1708246247333,-500.0,0.0003627,2]
[314377246,1708246247343,-334.81637976,0.0003627,2]
[314377247,1708246247352,-500.0,0.0003627,2]
[314377248,1708246247362,-500.0,0.0003627,2]
[314377249,1708246247372,-500.0,0.0003627,2]
[314377250,1708246247381,-500.0,0.0003627,2]
[314377251,1708246247391,-419.91,0.0003627,2]
[314377252,1708246247401,-500.0,0.0003627,2]
[314377253,1708246247410,-478.60511042,0.0003627,2]
[314377254,1708246247420,-500.0,0.0003627,2]
[314377255,1708246247429,-500.0,0.0003627,2]
[314377256,1708246247439,-500.0,0.0003627,2]
[314377257,1708246247448,-500.0,0.0003627,2]
[314377258,1708246247459,-550.1729259,0.0003627,2]
[314377259,1708246247468,-552.52792388,0.0003627,2]
[314377260,1708246247478,-306.29449889,0.0003627,2]
[314377261,1708246247487,-500.0,0.0003627,2]
[314377262,1708246247497,-500.0,0.0003627,2]
[314377263,1708246247507,-500.0,0.0003627,2]
[314377264,1708246247516,-546.16286972,0.0003627,2]
[314377265,1708246247526,-500.0,0.0003627,2]
[314377266,1708246247536,-561.19075117,0.0003627,2]
[314377267,1708246247546,-392.8982901,0.0003627,2]
[314377268,1708246247556,-500.0,0.0003627,2]
[314377269,1708246247566,-227.51238277,0.0003627,2]
[314377270,1708246247576,-179.62773481,0.0003627,2]
[314377271,1708246247587,-546.23,0.0003627,2]
[314377272,1708246247597,-500.0,0.0003627,2]
[314377273,1708246247607,-578.98040909,0.0003627,2]
[314377274,1708246247617,-529.1719077,0.0003627,2]
[314377275,1708246247627,-607.49848151,0.0003627,2]
[314377276,1708246247637,-500.0,0.0003627,2]
[314377277,1708246247647,-500.0,0.0003627,2]
[314377278,1708246247656,-500.0,0.0003627,2]
[314377279,1708246247666,-511.63806654,0.0003627,2]
[314377280,1708246247677,-500.0,0.0003627,2]
[314377281,1708246247687,-500.0,0.0003627,2]
[314377282,1708246247698,-534.74350096,0.0003627,2]
[314377283,1708246247865,-534.39832821,0.0003627,2]
[314377284,1708246247875,-500.0,0.0003627,2]
[314377285,1708246247885,-511.04251852,0.0003627,2]
[314377286,1708246247895,-500.0,0.0003627,2]
[314377287,1708246247905,-354.70598439,0.0003627,2]
[314377288,1708246247914,-519.76492885,0.0003627,2]
[314377289,1708246247924,-558.31092127,0.0003627,2]
[314377290,1708246247933,-528.52250239,0.0003627,2]
[314377291,1708246247942,-500.0,0.0003627,2]
[314377292,1708246247952,-530.51366961,0.0003627,2]
[314377293,1708246247962,-540.63767016,0.0003627,2]
[314377294,1708246247971,-513.7523414,0.0003627,2]
[314377295,1708246247980,-538.88626213,0.0003627,2]
[314377296,1708246247989,-500.0,0.0003627,2]
[314377297,1708246247998,-500.0,0.0003627,2]
[314377298,1708246248009,-500.0,0.0003627,2]